Cogmind - Beta 12 @@@ ROGUE MODE // 2023.06.06 @ 23:06:33 Player: Skeptic Result: Destroyed by Y-64 Sentinel with KE Penetrator Performance ------------- Evolutions (5) 2500 Regions Visited (8) 1600 Robots Destroyed (139) 695 Value Destroyed (5078) 5078 Prototype IDs (7) 140 Alien Tech Used (0) 0 Bonus (296) 296 TOTAL SCORE: 10309 Bonus ------- High Alert Combat Kills 194 Follower Combat Kills 386 Friendly Fire -284 Cogmind --------- Core Integrity 0/1000 Matter 250/300 Energy 150/150 System Corruption 12% Temperature Warm (178) Movement Hovering (234) Ox3 Location -5/Extension Parts ------- > --- POWER (3) -------- Light Angular Momentum Engine > --- PROPULSION (5) --- Carbon-fiber Leg Armored Leg Antigrav System Antigrav System (fused) Gyrokinetic Inverter > --- UTILITY (5) ------ Advanced Heat Sink Huge Storage Unit Improved Target Analyzer Improved Medium Armor Plating System Shield > --- WEAPON (4) ------- Heavy Beamcaster Gauss Rifle Flak Cannon > --- INVENTORY (25) --- Improved Treads Improved Treads Improved Treads Carbon-fiber Leg Carbon-fiber Leg Improved Hover Unit Advanced Heat Sink Advanced Heat Sink Large Storage Unit High-capacity Storage Unit Matter Compressor (136) Improved Signal Interpreter Targeting Computer Hacking Suite Improved Dynamic Insulation System System Restoration Module Recalibrator Gauss Rifle Improved Datajack Ripper Ripper Phasing Sabre Peak State ------------ > --- POWER ------------ Light Deuterium Engine Light Angular Momentum Engine Light Angular Momentum Engine > --- PROPULSION ------- Carbon-fiber Leg Armored Leg Antigrav System Antigrav System Gyrokinetic Inverter > --- UTILITY ---------- Advanced Heat Sink Huge Storage Unit Improved Target Analyzer Improved Medium Armor Plating System Shield > --- WEAPON ----------- Heavy Beamcaster Heavy Beamcaster Gauss Rifle Flak Cannon > --- INVENTORY -------- Improved Treads Improved Treads Improved Treads Carbon-fiber Leg Carbon-fiber Leg Improved Hover Unit Advanced Heat Sink Advanced Heat Sink Large Storage Unit Matter Compressor Improved Signal Interpreter Targeting Computer Hacking Suite Improved Dynamic Insulation System System Restoration Module Recalibrator Gauss Rifle Improved Datajack Ripper Ripper Phasing Sabre [Rating: 83] Favorites ----------- Power Improved Ion Engine Engine Improved Ion Engine Power Core Light Nuclear Core Propulsion Carbon-fiber Leg Treads Light Treads Leg Carbon-fiber Leg Wheel Armored Huge Wheel Hover Unit Antigrav System Flight Unit Improved Flight Unit Utility Huge Storage Unit Device Advanced Weight Redist. System Storage Huge Storage Unit Processor Improved Target Analyzer Hackware System Shield Protection Medium Armor Plating Weapon Advanced Beam Cannon Energy Gun Improved Medium Laser Energy Cannon Advanced Beam Cannon Ballistic Gun High-powered Shotgun Ballistic Cannon Improved Light Cannon Launcher Rocket Launcher Slashing Weapon Ripper Build | -11 -10 -9 -9 -8 -7 -6 -5 -5 ------- Run | Jun Mat Mat Sto Mat Fac Fac Fac Ext Slots Evolved 10 | . . 2 . 2 2 2 2 . Power 2 | . . . . . 1 . 1 . Propulsion 3 | . . 2 . . . . 1 . Utility 3 | . . . . 1 1 1 . . Weapon 2 | . . . . 1 . 1 . . Parts Attached 164 | 8 15 9 18 30 6 32 11 35 Power 22 | 2 2 1 2 3 1 4 3 4 Engine 16 | 2 2 1 2 3 . 2 1 3 Core 6 | . . . . . 1 2 2 1 Reactor . | . . . . . . . . . Propulsion 61 | 2 3 6 10 11 . 10 4 15 Treads 9 | . . . . 9 . . . . Leg 36 | 2 3 2 10 1 . 10 4 4 Wheel 1 | . . . . . . . . 1 Hover 14 | . . 4 . . . . . 10 Flight 1 | . . . . 1 . . . . Utility 40 | 2 4 1 2 8 4 10 1 8 Device 17 | 2 2 . . 3 2 3 1 4 Storage 4 | . 2 1 . 1 . . . . Processor 1 | . . . . . . . . 1 Hackware 1 | . . . . . . . . 1 Protection 17 | . . . 2 4 2 7 . 2 Artifact . | . . . . . . . . . Weapon 41 | 2 6 1 4 8 1 8 3 8 Energy Gun 13 | . 3 . . 4 1 . 2 3 Energy Cannon 7 | . . . 3 . . 3 1 . Ballistic Gun 10 | 2 1 . 1 3 . 2 . 1 Ballistic Cannon 8 | . 2 1 . . . 3 . 2 Launcher 1 | . . . . 1 . . . . Special Weapon . | . . . . . . . . . Impact Weapon . | . . . . . . . . . Slashing Weapon 2 | . . . . . . . . 2 Piercing Weapon . | . . . . . . . . . Special Melee Weapon . | . . . . . . . . . Unidentified Prototypes 3 | . . . 1 2 . . . . Corrupted Parts 1 | . . . . . . . . 1 System Corruption 4 | . . . . . . . . 4 Parts Lost 33 | . 2 1 . 1 . 11 . 18 Power 8 | . 1 . . . . 2 . 5 Propulsion 7 | . . 1 . . . 1 . 5 Utility 9 | . . . . 1 . 5 . 3 Weapon 9 | . 1 . . . . 3 . 5 Highest Loss Streak 10 | . 2 1 . 1 . 4 . 10 To Critical Strikes . | . . . . . . . . . Average Slot Usage (%) 95 | . 99 92 99 99 99 97 94 85 Engine 8 | . 14 11 10 9 7 6 10 8 Core 2 | . . . . . 7 5 1 2 Treads 7 | . . . . 30 30 2 . . Leg 20 | . 28 30 40 6 . 23 29 11 Hover 2 | . . 6 3 . . . . 11 Device 11 | . 17 11 1 13 15 17 11 7 Storage 7 | . 10 11 11 8 7 6 5 5 Protection 5 | . . . 9 3 6 7 11 5 Energy Gun 5 | . 5 . . 15 14 1 3 3 Energy Cannon 4 | . . . 17 2 . 3 6 1 Ballistic Gun 5 | . 8 . 1 8 7 9 5 3 Ballistic Cannon 7 | . 14 22 3 . . 10 5 4 Naked Turns . | . . . . . . . . . Heaviest Build 150 | 10 34 96 99 106 111 146 142 150 Greatest Support 94 | 20 20 33 43 94 94 94 90 81 Greatest Overweight (x) 36 | . 1 4 3 3 1 3 1 36 Average Overweight (x) 1 | . . 1 2 1 1 1 1 2 Largest Inventory Capacity 25 | 5 15 25 25 25 25 25 25 25 Average Capacity 23 | 5 8 21 25 24 25 25 25 25 Most Carried 25 | 5 9 25 25 25 25 25 20 22 Average Carried 19 | 3 6 18 24 21 24 21 15 15 Final Capacity 25 | 5 15 25 25 25 25 25 25 25 Final Carried 25 | 5 9 25 25 24 25 13 18 22 Class Distribution -------------------- 32% | Scavenger-Tank 24% | Scavenger-Mutant 17% | Mutant 13% | Gunner 6% | Tank 5% | Scavenger-Gunner Dominant Class ---------------- Scavenger-Mutant | -10/Materials Mutant | -9/Materials Scavenger-Mutant | -9/Storage Scavenger-Tank | -8/Materials Scavenger-Tank | -7/Factory Gunner | -6/Factory Scavenger-Tank | -5/Factory Scavenger-Mutant | -5/Extension Resources | -11 -10 -9 -9 -8 -7 -6 -5 -5 ----------- Run | Jun Mat Mat Sto Mat Fac Fac Fac Ext Matter Collected 4367 | 296 260 333 215 744 87 1244 424 764 Remotely . | . . . . . . . . . Salvage Created 5224 | 53 419 428 800 1197 100 1282 322 623 Parts 280 | 9 24 28 46 57 1 70 23 22 Haulers Intercepted . | . . . . . . . . . Recyclers Shooed 8 | . 1 . 2 2 . 3 . . Parts Field Recycled . | . . . . . . . . . Retrieved Matter . | . . . . . . . . . Parts Self-Destructed . | . . . . . . . . . Prevented . | . . . . . . . . . Kills | -11 -10 -9 -9 -8 -7 -6 -5 -5 ------- Run | Jun Mat Mat Sto Mat Fac Fac Fac Ext Combat Hostiles Destroyed 116 | 1 11 13 14 29 2 28 8 10 Melee 1 | . . . . . . . . 1 Guns 49 | 1 9 . . 20 2 7 6 4 Cannons 60 | . 2 13 14 4 . 20 2 5 AOE 3 | . . . . 2 . 1 . . Classes Destroyed 12 | 2 3 3 1 . . 1 . 2 Worker 6 | . . . 1 1 . 4 . . Builder 3 | . . 1 . . . 2 . . Tunneler 2 | 1 . . . . . . 1 . Recycler 2 | . 1 . 1 . . . . . Operator 1 | . . . . . . . . 1 Watcher 8 | . 3 1 2 1 . 1 . . Swarmer 25 | . 5 2 . 8 . 6 4 . Grunt 60 | 1 6 6 7 15 2 17 2 4 Brawler 2 | . . 1 . 1 . . . . Sentry 23 | . . 4 7 5 . 2 . 5 Hunter 1 | . . . . . . . . 1 Programmer 5 | . . . . . . 3 2 . Thug 1 | . . . . . . 1 . . Best Kill Streak 7 | 2 7 3 4 4 2 6 5 2 Combat Bots Only 7 | 1 7 3 3 4 2 4 4 2 Max Kills in Single Turn 3 | 1 1 2 1 3 1 2 1 1 Gunslinging 1 | . . . . 1 . . . . Exploded 2 | . . . . 2 . 1 . . Melee 1 | . . . . . . . . 1 Uniques/NPCs Destroyed . | . . . . . . . . . Combat | -11 -10 -9 -9 -8 -7 -6 -5 -5 -------- Run | Jun Mat Mat Sto Mat Fac Fac Fac Ext Damage Taken 9721 | 11 606 434 498 1553 76 2648 1051 2844 Core 1793 | . 172 62 36 243 . 267 348 665 Absorbed by Shields 491 | . . . . 223 . . . 268 Redirected to Shielding 89 | . . . . . 8 . 70 11 Regen/Repaired (Parts) 338 | . . . . 338 . . . . Core Remaining (%) 71 | 100 31 . 75 55 100 68 . . Volleys Fired 333 | 4 35 31 33 76 7 81 22 44 Largest 4 | 2 2 2 2 3 3 4 4 4 Hottest 265 | 40 85 78 136 180 157 221 212 265 Shots Fired 908 | 8 62 62 64 222 21 274 83 112 Gun 469 | 8 54 . . 199 21 101 33 53 Cannon 437 | . 8 62 64 21 . 173 50 59 Launcher 2 | . . . . 2 . . . . Special . | . . . . . . . . . Kinetic 537 | 8 50 62 8 70 7 229 44 59 Thermal 354 | . 12 . 56 150 14 40 39 43 Explosive 2 | . . . . 2 . . . . Electromagnetic 15 | . . . . . . 5 . 10 Robot Hit Streak 12 | 3 6 12 5 11 4 8 7 10 Robot Miss Streak 7 | 1 4 7 5 7 2 7 6 6 Penetration Max 1 | . . . . . . 1 . 1 Secondary Targets 5 | . 4 . . 1 . . . . Max Gunslinging Chain 1 | . 1 . . 1 . . . . Shots Hit Robots 491 | 4 34 30 31 127 10 140 36 79 Core Hits 243 | 3 21 17 19 52 6 65 15 45 Critical Kills 6 | . 1 . . 2 . 1 . 2 Critical Parts Destroyed 4 | . . . . . 1 1 . 2 Critical Strikes 37 | . 3 2 . 8 2 7 3 12 Burn 14 | . . . . 6 1 . 1 6 Meltdown 2 | . . . . 2 . . . . Destroy 8 | . 1 . . . 1 2 . 4 Blast 11 | . 2 2 . . . 5 2 . Sever 2 | . . . . . . . . 2 Melee Attacks 12 | . . . . . . . . 12 Impact . | . . . . . . . . . Slashing 12 | . . . . . . . . 12 Piercing . | . . . . . . . . . Sneak Attacks . | . . . . . . . . . Combat Hostiles . | . . . . . . . . . Follow-up Attacks 1 | . . . . . . . . 1 Damage Inflicted 11293 | 46 464 723 676 2251 221 3981 895 2036 Guns 5092 | 46 348 . . 1849 221 1474 412 742 Cannons 5678 | . 116 723 676 330 . 2365 483 985 Explosions 214 | . . . . 72 . 142 . . Melee 309 | . . . . . . . . 309 Ramming . | . . . . . . . . . Kinetic 6793 | 46 354 723 81 675 115 3327 378 1094 Thermal 3933 | . 110 . 595 1504 106 570 517 531 Explosive 72 | . . . . 72 . . . . Electromagnetic 186 | . . . . . . 84 . 102 Impact . | . . . . . . . . . Slashing 309 | . . . . . . . . 309 Piercing . | . . . . . . . . . Highest Corruption 12 | . . . 2 1 . 1 . 12 Average Corruption 3 | . . . 2 1 . 1 . 11 Corruption Purged . | . . . . . . . . . Corruption Blocked . | . . . . . . . . . Effects 70 | . . . 20 . . 14 . 36 Message Errors 17 | . . . 4 . . 6 . 7 Matter Fused 16 | . . . 4 . . 2 . 10 Heat Flow Errors 9 | . . . 1 . . 2 . 6 Energy Discharges 9 | . . . 2 . . 3 . 4 Parts Rejected 2 | . . . . . . . . 2 Parts Fused 1 | . . . . . . . . 1 Data Loss (minor) 6 | . . . 3 . . . . 3 Data Loss (major) 2 | . . . 2 . . . . . Misfires 3 | . . . 1 . . 1 . 1 Alerts 3 | . . . 2 . . . . 1 Misdirections 1 | . . . . . . . . 1 Weapon Failures 1 | . . . 1 . . . . . Overload Shots . | . . . . . . . . . Overflow Damage 173 | . . 2 12 3 . 152 4 . Projectiles 42 | . . 2 12 . . 24 4 . Explosions 131 | . . . . 3 . 128 . . Melee . | . . . . . . . . . Knockbacks 42 | . . 3 . . . 32 1 6 Impact . | . . . . . . . . . Kinetic 35 | . . 2 . . . 27 1 5 Secondary 7 | . . 1 . . . 5 . 1 Self-Inflicted Damage 431 | . . . . 40 . 391 . . Shots 5 | . . . . 1 . 4 . . Rammed . | . . . . . . . . . Targets Rammed . | . . . . . . . . . Kicked . | . . . . . . . . . Crushed . | . . . . . . . . . Highest Temperature 633 | . 168 78 300 572 444 403 620 633 Average Temperature 145 | . 70 28 101 173 217 107 238 223 Received Heat Transfer 2552 | 6 174 81 144 702 63 711 216 455 Effects 77 | . . . 2 20 . 10 22 23 Shutdowns 23 | . . . . 3 . 2 7 11 Energy Bleed 13 | . . . . 7 . 3 2 1 Interference 9 | . . . 2 . . 4 3 . Matter Decay 6 | . . . . 4 . . 1 1 Short Circuit 4 | . . . . . . . . 4 Damage (minor) 7 | . . . . 1 . 1 2 3 Damage (major) 11 | . . . . 4 . . 5 2 Damage (core) 4 | . . . . 1 . . 2 1 Siege Activations . | . . . . . . . . . Robots Corrupted . | . . . . . . . . . Combat Hostiles . | . . . . . . . . . Parts Fried 1 | . . . . . . . . 1 Impact Corruptions . | . . . . . . . . . Robots Melted 3 | . . . . 3 . . . . Combat Hostiles 3 | . . . . 3 . . . . Parts Melted 22 | . . . 1 17 . . 4 . Heat Transferred 8684 | . 260 . 1073 3737 296 827 1055 1436 Parts Sabotaged . | . . . . . . . . . Parts Stolen . | . . . . . . . . . Parts Stripped . | . . . . . . . . . Power Chain Reactions . | . . . . . . . . . Missiles Intercepted . | . . . . . . . . . Alert | -11 -10 -9 -9 -8 -7 -6 -5 -5 ------- Run | Jun Mat Mat Sto Mat Fac Fac Fac Ext Peak Influence 631 | 25 349 270 296 583 349 631 424 321 Initial 277 | . 16 96 68 122 264 72 277 178 Average 235 | 7 224 138 158 322 258 270 323 184 Maximum Alert Level 2 | . 1 1 1 2 1 2 2 1 Low Security (%) 45 | 100 24 74 61 9 37 54 . 69 Level 1 43 | . 75 25 38 74 62 13 90 30 Level 2 11 | . . . . 16 . 31 9 . Level 3 . | . . . . . . . . . Level 4 . | . . . . . . . . . Level 5 . | . . . . . . . . . High Security . | . . . . . . . . . Max Security . | . . . . . . . . . Squads Dispatched 17 | . 3 1 . 3 1 6 1 2 Investigation 9 | . 2 . . 3 1 2 . 1 Extermination 3 | . . . . . . 2 1 . Reinforcement 5 | . 1 1 . . . 2 . 1 Assault . | . . . . . . . . . Garrison . | . . . . . . . . . Intercept . | . . . . . . . . . Searches Triggered . | . . . . . . . . . Construction Impeded 2 | . . . . . . 2 . . Haulers Reinforced . | . . . . . . . . . Active Scanning Responses . | . . . . . . . . . Cargo Convoy Interrupts . | . . . . . . . . . Stealth | -11 -10 -9 -9 -8 -7 -6 -5 -5 --------- Run | Jun Mat Mat Sto Mat Fac Fac Fac Ext Distress Signals 9 | . 1 1 1 2 . 1 1 2 Communications Jammed . | . . . . . . . . . Distress Signals . | . . . . . . . . . Times Spotted 182 | 1 18 22 19 40 2 37 13 30 Peak Tracking Total 8 | 1 8 4 3 4 2 4 5 6 Tactical Retreats 19 | . 2 . . 6 . 3 3 5 Traps | -11 -10 -9 -9 -8 -7 -6 -5 -5 ------- Run | Jun Mat Mat Sto Mat Fac Fac Fac Ext Traps Triggered 6 | . 1 . 3 . . . 1 1 Indirectly . | . . . . . . . . . Trap Hack Attempts . | . . . . . . . . . Triggered . | . . . . . . . . . Disarmed . | . . . . . . . . . Reprogrammed . | . . . . . . . . . Reused . | . . . . . . . . . Traps Extracted . | . . . . . . . . . Installed . | . . . . . . . . . Triggered . | . . . . . . . . . Machines | -11 -10 -9 -9 -8 -7 -6 -5 -5 ---------- Run | Jun Mat Mat Sto Mat Fac Fac Fac Ext Machines Disabled 13 | . 1 . 2 . . 10 . . Max in Single Turn 4 | . 1 . 1 . . 4 . . Machines Repaired . | . . . . . . . . . Machines Sabotaged . | . . . . . . . . . Overloaded Fab Kills . | . . . . . . . . . Hacking | -11 -10 -9 -9 -8 -7 -6 -5 -5 --------- Run | Jun Mat Mat Sto Mat Fac Fac Fac Ext Machines Accessed 43 | . 4 3 9 9 2 7 3 6 Terminals 30 | . 4 2 6 5 1 5 2 5 Fabricators 1 | . . . . . . 1 . . Repair Stations 5 | . . . 1 2 . . 1 1 Recycling Units 6 | . . 1 2 2 . 1 . . Scanalyzers 1 | . . . . . 1 . . . Garrison Access . | . . . . . . . . . Total Hacks 136 | . 11 15 29 37 6 19 6 13 Successful 81 | . 7 10 13 24 5 10 4 8 Failed 55 | . 4 5 16 13 1 9 2 5 Catastrophic 8 | . . 1 1 1 1 . . 4 Database Lockouts . | . . . . . . . . . Manual 4 | . . . 4 . . . . . Terminals 97 | . 11 9 21 22 4 14 5 11 Fabricators 2 | . . . . . . 2 . . Repair Stations 13 | . . . 2 8 . . 1 2 Recycling Units 22 | . . 6 6 7 . 3 . . Scanalyzers 2 | . . . . . 2 . . . Garrison Access . | . . . . . . . . . Terminal Hacks 57 | . 7 6 9 14 3 7 3 8 Record 37 | . 2 5 7 8 3 5 2 5 Robot Schematic 1 | . . . . . . . 1 . Prototype ID Bank 2 | . 1 . . 1 . . . . Open Door 5 | . . . 2 . . . . 3 Open DSF 1 | . . . . . . 1 . . Terminal Index 1 | . 1 . . . . . . . Alert Level 4 | . 2 1 . 1 . . . . Locate Traps 1 | . . . . 1 . . . . Dispatch Records 1 | . . . . 1 . . . . Investigation Status 2 | . . . . 1 . 1 . . Assault Status 1 | . 1 . . . . . . . Zone Layout 1 | . . . . 1 . . . . Fabricator Hacks 2 | . . . . . . 2 . . Network Status 1 | . . . . . . 1 . . Load Schematic 1 | . . . . . . 1 . . Repair Station Hacks 6 | . . . 1 4 . . 1 . Scan Component 4 | . . . 1 3 . . . . Repair 1 | . . . . 1 . . . . Refit 1 | . . . . . . . 1 . Recycling Unit Hacks 14 | . . 4 3 6 . 1 . . Process 4 | . . 1 . 3 . . . . Report Inventory 6 | . . 1 2 2 . 1 . . Retrieve Matter 2 | . . 1 . 1 . . . . Retrieve Components 2 | . . 1 1 . . . . . Scanalyzer 2 | . . . . . 2 . . . Insert Component 1 | . . . . . 1 . . . Analyze 1 | . . . . . 1 . . . Garrison Access Hacks . | . . . . . . . . . Unauthorized Hacks . | . . . . . . . . . Terminals . | . . . . . . . . . Fabricators . | . . . . . . . . . Repair Stations . | . . . . . . . . . Recycling Units . | . . . . . . . . . Scanalyzers . | . . . . . . . . . Garrison Access . | . . . . . . . . . Data Cores Recovered 1 | . . . . . . . . 1 Used 1 | . . . . . . . . 1 Hacking Detections 39 | . 4 3 9 8 2 6 3 4 Full Trace Events 9 | . 1 . 1 3 1 2 . 1 Feedback Events 1 | . . . . 1 . . . . Corruption 1 | . . . . 1 . . . . Feedback Blocked . | . . . . . . . . . Robot Schematics Acquired 1 | . . . . . . . 1 . Robots Built . | . . . . . . . . . Authchips . | . . . . . . . . . Time . | . . . . . . . . . Total Robot Build Rating . | . . . . . . . . . Part Schematics Acquired 1 | . . . . . 1 . . . Parts Built . | . . . . . . . . . Authchips . | . . . . . . . . . Time . | . . . . . . . . . Total Part Build Rating . | . . . . . . . . . Parts Repaired 1 | . . . . 1 . . . . Time 26 | . . . . 26 . . . . Parts Recycled . | . . . . . . . . . Recycled Matter 327 | . . . . 327 . . . . Retrieved Matter 387 | . . . . 387 . . . . Retrieved Components 15 | . . 5 10 . . . . . Parts Scanalyzed 1 | . . . . . 1 . . . Part Schematics Acquired 1 | . . . . . 1 . . . Parts Damaged . | . . . . . . . . . Bothacking | -11 -10 -9 -9 -8 -7 -6 -5 -5 ------------ Run | Jun Mat Mat Sto Mat Fac Fac Fac Ext Used RIF Installer . | . . . . . . . . . Robots Hacked . | . . . . . . . . . Non-combat . | . . . . . . . . . Combat . | . . . . . . . . . Robot Hacks Applied . | . . . . . . . . . Relay Couplers Released . | . . . . . . . . . Fabnet Peak Effective % . | . . . . . . . . . Robots Rewired . | . . . . . . . . . Allies Hacked . | . . . . . . . . . Hacks Repelled . | . . . . . . . . . Allies | -11 -10 -9 -9 -8 -7 -6 -5 -5 -------- Run | Jun Mat Mat Sto Mat Fac Fac Fac Ext Total Allies 5 | . . . . . . . . 5 Largest Group 2 | . . . . . . . . 2 Highest-Rated Group 159 | . . . . . . . . 159 Highest-Rated Ally 159 | . . . . . . . . 159 Total Orders . | . . . . . . . . . Ally Attacks 49 | . . . . . . . . 49 Total Damage 1622 | . . . . . . . . 1622 Kills 11 | . . . . . . . . 11 Allies Corrupted . | . . . . . . . . . Allies Melted . | . . . . . . . . . Intel | -11 -10 -9 -9 -8 -7 -6 -5 -5 ------- Run | Jun Mat Mat Sto Mat Fac Fac Fac Ext Robot Analysis Total . | . . . . . . . . . Derelict Logs Recovered . | . . . . . . . . . Drone Launches . | . . . . . . . . . Drone Recoveries . | . . . . . . . . . Exploration | -11 -10 -9 -9 -8 -7 -6 -5 -5 ------------- Run | Jun Mat Mat Sto Mat Fac Fac Fac Ext Turns Passed 9170 | 136 567 954 1195 1564 639 2176 702 1237 Spaces Moved 3311 | 87 295 317 375 458 192 872 298 417 Core 22 | 21 . . . . . . . 1 Treads 680 | . . . . 397 192 91 . . Legs 2217 | 66 295 299 352 61 . 781 298 65 Wheels 73 | . . . . . . . . 73 Hover 319 | . . 18 23 . . . . 278 Flight . | . . . . . . . . . Fastest Speed 50 | 50 120 190 228 236 236 190 190 145 Average Speed 210 | 103 130 234 258 240 236 202 190 217 Slowest Speed 1850 | 120 190 302 260 330 236 330 190 1850 Overloaded Moves . | . . . . . . . . . Propulsion Burnouts . | . . . . . . . . . Robots Hopped . | . . . . . . . . . Cave-ins Triggered 2 | . . . . . . . . 2 Exploration Rate (%) 26 | 7 39 28 59 37 5 23 6 37 Regions Visited 8 Branch Regions 2 Pre-discovered Areas . | . . . . . . . . . Known Exits Taken . | . . . . . . . . . Unknown Exits Taken 8 | 1 1 1 1 1 1 1 1 . Scrap Searched . | . . . . . . . . . Spaces Dug . | . . . . . . . . . Terrain Destroyed 82 | . . 3 . 21 . 52 . 6 Melee . | . . . . . . . . . Projectile 33 | . . 3 . . . 24 . 6 AOE 49 | . . . . 21 . 28 . . Terrain Rammed . | . . . . . . . . . Walls Destroyed . | . . . . . . . . . Machines Disabled . | . . . . . . . . . Actions | -11 -10 -9 -9 -8 -7 -6 -5 -5 --------- Run | Jun Mat Mat Sto Mat Fac Fac Fac Ext Total 4823 | 126 420 467 549 757 362 1107 384 651 Wait 696 | 12 48 85 76 126 151 78 31 89 Move 3303 | 86 294 316 374 457 191 871 297 417 Hop . | . . . . . . . . . Pick Up 187 | 14 15 22 20 40 5 20 16 35 Fast Attach 7 | . 3 . 2 1 . 1 . . Attach 87 | 7 3 4 4 10 3 18 7 31 Detach 5 | . . . . . . . . 5 Swap 70 | 1 9 5 12 19 3 13 4 4 Drop 122 | 2 13 4 28 28 2 25 7 13 Fire 333 | 4 35 31 33 76 7 81 22 44 Melee 11 | . . . . . . . . 11 Ram . | . . . . . . . . . Kick . | . . . . . . . . . Crush . | . . . . . . . . . Escape Stasis . | . . . . . . . . . Rewire 2 | . . . . . . . . 2 Trap . | . . . . . . . . . Miscellaneous . | . . . . . . . . . Route ------- -11/Junkyard -10/Materials -9/Materials -9/Storage -8/Materials -7/Factory -6/Factory -5/Factory -5/Extension History --------- Turn | Location | Event 2 | -11/Junkyard | Met Revision 17 82 | -11/Junkyard | Discovered new exit (range 8) 137 | -11/Junkyard | Entered Materials 230 | -10/Materials | Core integrity fell below 50% 256 | -10/Materials | Destroyed 7 combat bots 498 | -10/Materials | Discovered new exit (range 14) 540 | -10/Materials | Build established: Scavenger-Mutant 704 | -10/Materials | Entered another Materials area 704 | -9/Materials | Evolved 2 slots: Propulsion x2 897 | -9/Materials | Build established: Mutant 1374 | -9/Materials | Discovered new exit (range 15) 1658 | -9/Materials | Entered Storage 2028 | -9/Storage | Build established: Scavenger-Mutant 2824 | -9/Storage | Discovered new exit (range 8) 2853 | -9/Storage | Entered Materials 2853 | -8/Materials | Evolved 2 slots: Utility x1, Weapon x1 3145 | -8/Materials | Build established: Scavenger-Tank 3450 | -8/Materials | Repaired Huge Storage Unit 4155 | -8/Materials | Discovered new exit (range 15) 4417 | -8/Materials | Entered Factory 4417 | -7/Factory | Evolved 2 slots: Power x1, Utility x1 4524 | -7/Factory | Discovered new exit (range 4) 5056 | -7/Factory | Entered another Factory area 5056 | -6/Factory | Evolved 2 slots: Utility x1, Weapon x1 5528 | -6/Factory | Build established: Gunner 6836 | -6/Factory | Lost 4 parts (1u3w) 7164 | -6/Factory | Discovered new exit (range 15) 7232 | -6/Factory | Entered another Factory area 7232 | -5/Factory | Evolved 2 slots: Power x1, Propulsion x1 7776 | -5/Factory | Build established: Scavenger-Tank 7883 | -5/Factory | Discovered new exit (range 14) 7934 | -5/Factory | Entered Extension 8030 | -5/Extension | Rescued a captive Derelict 8031 | -5/Extension | Rescued a captive Derelict 8158 | -5/Extension | Lost 3 parts (1p1n1u) 8302 | -5/Extension | Crushed by falling debris 8302 | -5/Extension | Core integrity fell below 50% 8316 | -5/Extension | System corruption reached 10% 8331 | -5/Extension | Crushed by falling debris 8351 | -5/Extension | Core integrity fell below 20% 8373 | -5/Extension | Lost 10 parts (3p3n2u2w) 8505 | -5/Extension | Rescued a captive Derelict 8506 | -5/Extension | Rescued a captive Derelict 8670 | -5/Extension | Build established: Scavenger-Mutant 8708 | -5/Extension | Rescued A7 9133 | -5/Extension | Spotted B-75 Beast 9145 | -5/Extension | Spotted B-75 Beast 9160 | -5/Extension | Allies destroyed B-75 Beast 9171 | -5/Extension | Destroyed by Y-64 Sentinel with KE Penetrator Last Messages --------------- 09157_ Slug penetrates A7. 09159_ U-05 Engineer builds a Wall. 09160_ System corrupted: Lgt. Deuterium Engine rejected. 09160_ B-75 Beast system terminally corrupted. 09160_ Slug penetrates Wall. 09161_ Slug penetrates A7. 09161_ A7: "I've done al##MISSION::FAILED##" 09161_ A7 destroyed. 09163_ U-05 Engineer builds a Wall. 09166_ Hvy. Beamcaster destroyed. 09166_ Slug penetrates Wall. 09168_ Slug penetrates Y-64 Sentinel. 09169_ Penetrated by Slug. 09171_ Slug penetrates Y-64 Sentinel. 09171_ Y-64 Sentinel suffers critical hit (Destroy). 09171_ Y-64 Sentinel destroyed. 09171_ Lgt. Angular Momentum Engine destroyed. 09171_ Penetrated by Slug. [Achievement: 5k Club] [Achievement: 10k Club] Map ----- +----------------------------------------------------+ | #######################?????????????????????????? | | #?????????????????????????? | | ############ #?????????????????????????? | | #??????????# #?????????????????????????? | | ##??????#####+## #?????????????????????????? | | #???????# / [# #?????????????????????????? | | #???????# # ####??????????????????????? | | #???????#= / =+= #??????????????????????? | | #???????# / #%######## #??????????????????????? | | #######?# # #??????# #??????????????????????? | | #?# # #??????# #??????????????????????? | | #?######## #??????# #??????????????????????? | | ########## #??????# #??????????????????????? | | + #??????#k#??????????????????????? | | ##########+###????# #??????????????????????? | | #????????# #????# #??????????????????????? | | #######????????# #????# #??????????????????????? | | ???????????????# #????# #??????????????????????? | | ???????????????# #????#u#??????????????????????? | | ???????????????# #????# #??????????????????????? | | ???????????????# #????# #??????????????????????? | | ???????????????# #????# #??????????????????????? | | ???????????????# #????# #??????????????????????? | | ???????????????# #????# #??????????????????????? | | ????????????????####????# #??????????????????????? | | ???????????????????????##@#??????????????????????? | | ???????????????????????## ##??#??????????????????? | | ??????????????????????### ;#" ## ##??????????????? | | ??????????????????????# %!Y "" "???????????? | | ??????????????????????# %$% " " ??????????? | | ??????????????????????# =% #?????????? | | ??????????????????????# #?????????? | | ??????????????????????# #?????????? | | ?????????????????????? ?????????? | | ????????????????????? ?????????? | | ???????????????????? ?????????? | | ??????????????????? !![ ??????????? | | ?????????????????? ==%= ??????????? | | ?????????????????###### *R= ???????????? | | ??????????????????????# = ???????????? | | ??????????????????????# ?????????????? | | ??????????????????????# ???????????????? | | ??????????????????????# ??????????????????? | | ????????????????????????####T????????????????????? | | ?????????????????????????????????????????????????? | | ?????????????????????????????????????????????????? | | | | | | | | | +----------------------------------------------------+ Best States ------------- Heat Dissipation 59 Energy Generation 40 Energy Capacity 350 Matter Stores 300 Matter Capacity 300 Sight Range 16 Robot Scan Range 14 Terrain Scan Range 14 Terrain Scan Density 10 Additional Mass Support 9 Armor Coverage 450 Resistance: KI 30 Power Shielding 66 Evasion (%) 55 Target Analysis 6 Recoil Reduction 4 Matter Filtering 30 Kinecelleration 30 Defensive Hacking 10 Item Schematics ----------------- Com. Matter Pod | -7/Factory | Scanalyzed Robot Schematics ------------------ R-06 Scavenger | -5/Factory | Hacked Fabricated ------------ Nothing Alien Tech Used ----------------- None Achievements -------------- 10k Club 5k Club Backstab It's Just You Let's See Who's Tougher Librarian Oops Prison Break Safety First Serviceable Loadout Tank Challenges ------------ None Game ------ Seed VisualFlyingMachine Manual? 0 Play Time 02:12:02 Cumulative 4.8 hours Start 2023.06.06 @ 17:15:35 End 2023.06.06 @ 23:06:33 Sessions 1 Manual Loads 0 Difficulty Rogue Special Mode None Game No. 2 Rogue 2 Adventurer 0 Explorer 0 Win Type - Total 0 Types 0/0/0/0/0/0/0/0/0 Lore% 3 Gallery% 7 Achievement% 11 Wizard Run 0 Options --------- ASCII 0 Keyboard 0 Movement Mouse Keybinds 0 Fullscreen 2 Font 24/Proggy Map View 76x50 Tactical HUD 1 Map Filters NONE Filters NONE Steam 1 RUN: 45fec97e-f5df-4ab3-9890-0ad652717330